Cogmind - Beta 12 *** ADVENTURER MODE // 2023.07.31 @ 20:55:19 Player: Chiefwannatoke Result: Self-destructed Performance ------------- Evolutions (2) 1000 Regions Visited (5) 1000 Robots Destroyed (49) 245 Value Destroyed (1776) 1776 Prototype IDs (10) 200 Alien Tech Used (0) 0 Bonus (244) 244 TOTAL SCORE: 4465 Bonus ------- Pacifist 200 High Alert Combat Kills 44 Cogmind --------- Core Integrity 418/550 Matter 265/300 Energy 68/160 System Corruption 0% Temperature Cool (0) Movement Treading (145) Location -8/Storage Parts ------- > --- POWER (1) -------- Light Nuclear Core > --- PROPULSION (4) --- Advanced Treads Advanced Treads Advanced Treads Advanced Treads > --- UTILITY (4) ------ Improved Heat Sink Small Storage Unit Trap Scanner > --- WEAPON (2) ------- Improved EM Pulse Cannon Advanced EMP Blaster > --- INVENTORY (8) ---- Improved Treads Improved Treads Advanced Treads Beam Cannon Flak Gun Assault Cannon Peak State ------------ > --- POWER ------------ Light Nuclear Core > --- PROPULSION ------- Advanced Treads Advanced Treads Advanced Treads Advanced Treads > --- UTILITY ---------- Improved Heat Sink Small Storage Unit Energy Filter Reflective Plating > --- WEAPON ----------- Improved EM Pulse Cannon Advanced EMP Blaster > --- INVENTORY -------- Improved Treads Improved Treads Advanced Treads Trap Scanner Improved EM Pulse Cannon Beam Cannon Flak Gun Assault Cannon [Rating: 36] Favorites ----------- Power Ion Engine Engine Ion Engine Power Core Light Nuclear Core Propulsion Advanced Treads Treads Advanced Treads Leg Aluminum Leg Utility Small Storage Unit Device Improved Heat Sink Storage Small Storage Unit Protection Light Armor Plating Weapon Field Laser Energy Gun Field Laser Energy Cannon Improved EM Pulse Cannon Ballistic Gun Assault Rifle Launcher Advanced EMP Blaster Build | -11 -10 -9 -9 -8 -8 ------- Run | Jun Mat Mat Min Mat Sto Slots Evolved 4 | . . 2 . 2 . Power . | . . . . . . Propulsion 2 | . . 2 . . . Utility 2 | . . . . 2 . Weapon . | . . . . . . Parts Attached 36 | 6 . 12 1 9 8 Power 4 | 1 . . . 1 2 Engine 2 | 1 . . . . 1 Core 2 | . . . . 1 1 Reactor . | . . . . . . Propulsion 11 | 2 . 8 . 1 . Treads 9 | . . 8 . 1 . Leg 2 | 2 . . . . . Wheel . | . . . . . . Hover . | . . . . . . Flight . | . . . . . . Utility 11 | 1 . 1 1 4 4 Device 7 | . . . 1 3 3 Storage 1 | 1 . . . . . Processor . | . . . . . . Hackware . | . . . . . . Protection 3 | . . 1 . 1 1 Artifact . | . . . . . . Weapon 10 | 2 . 3 . 3 2 Energy Gun 3 | 1 . 2 . . . Energy Cannon 3 | . . . . 2 1 Ballistic Gun 2 | 1 . 1 . . . Ballistic Cannon . | . . . . . . Launcher 2 | . . . . 1 1 Special Weapon . | . . . . . . Impact Weapon . | . . . . . . Slashing Weapon . | . . . . . . Piercing Weapon . | . . . . . . Special Melee Weapon . | . . . . . . Unidentified Prototypes 1 | . . . . . 1 Parts Lost 6 | . . . 1 . 5 Power 1 | . . . . . 1 Propulsion . | . . . . . . Utility 4 | . . . 1 . 3 Weapon 1 | . . . . . 1 Highest Loss Streak 1 | . . . 1 . 1 To Critical Strikes . | . . . . . . Average Slot Usage (%) 95 | . 85 93 99 93 97 Engine 6 | . 14 11 11 2 1 Core 3 | . . . . 6 7 Treads 33 | . . 24 44 36 36 Leg 5 | . 28 19 . . . Device 10 | . . . 1 20 19 Storage 10 | . 14 11 11 9 9 Protection 4 | . . 4 8 . 5 Energy Gun 11 | . 14 11 22 14 . Energy Cannon 4 | . . . . 2 11 Ballistic Gun 2 | . 14 10 . . . Launcher 1 | . . . . . 6 Naked Turns . | . . . . . . Heaviest Build 31 | 14 14 19 19 31 31 Greatest Support 88 | 20 20 88 88 88 88 Greatest Overweight (x) 2 | 2 . . . . . Average Overweight (x) . | . . . . . . Largest Inventory Capacity 8 | 8 8 8 8 8 8 Average Capacity 7 | 7 8 8 8 8 8 Most Carried 8 | 4 6 8 8 8 8 Average Carried 7 | 2 4 6 7 7 7 Final Capacity 8 | 8 8 8 8 8 8 Final Carried 8 | 4 6 8 7 8 6 Class Distribution -------------------- 100% | Mutant Dominant Class ---------------- Mutant | -10/Materials Mutant | -9/Materials Mutant | -9/Mines Mutant | -8/Materials Mutant | -8/Storage Resources | -11 -10 -9 -9 -8 -8 ----------- Run | Jun Mat Mat Min Mat Sto Matter Collected 605 | 191 . 218 51 42 103 Remotely . | . . . . . . Salvage Created 2263 | . . 386 424 429 1024 Parts 102 | . . 20 21 20 41 Haulers Intercepted 2 | . . . . . 2 Recyclers Shooed 1 | . . . . . 1 Parts Field Recycled . | . . . . . . Retrieved Matter . | . . . . . . Parts Self-Destructed . | . . . . . . Prevented . | . . . . . . Kills | -11 -10 -9 -9 -8 -8 ------- Run | Jun Mat Mat Min Mat Sto Combat Hostiles Destroyed 46 | . . 8 12 10 16 Guns 23 | . . 8 11 4 . Cannons 11 | . . . . 1 10 AOE 6 | . . . . 3 3 Classes Destroyed 7 | . . 2 2 1 2 Hauler 2 | . . . . . 2 Recycler 1 | . . . . 1 . Swarmer 7 | . . . 3 4 . Grunt 26 | . . 6 8 3 9 Duelist 1 | . . . 1 . . Sentry 11 | . . 2 . 3 6 Hunter 1 | . . . . . 1 Best Kill Streak 6 | . . 4 6 5 3 Combat Bots Only 6 | . . 4 6 4 3 Max Kills in Single Turn 2 | . . 2 1 2 2 Gunslinging 1 | . . 1 . . . Exploded 2 | . . . . 2 2 Melee . | . . . . . . Uniques/NPCs Destroyed . | . . . . . . Combat | -11 -10 -9 -9 -8 -8 -------- Run | Jun Mat Mat Min Mat Sto Damage Taken 1620 | . . 246 283 252 839 Core 178 | . . 12 34 34 98 Absorbed by Shields . | . . . . . . Core Remaining (%) 96 | 100 100 . 88 . . Volleys Fired 113 | . . 18 25 24 46 Largest 2 | . . 2 2 2 2 Hottest 138 | . . 63 126 138 138 Shots Fired 175 | . . 32 50 46 47 Gun 124 | . . 32 50 42 . Cannon 46 | . . . . 2 44 Launcher 5 | . . . . 2 3 Special . | . . . . . . Kinetic 18 | . . 18 . . . Thermal 92 | . . . 50 42 . Explosive 2 | . . . . 2 . Electromagnetic 63 | . . 14 . 2 47 Robot Hit Streak 28 | . . 18 7 12 28 Robot Miss Streak 4 | . . 1 4 1 1 Penetration Max . | . . . . . . Secondary Targets 7 | . . 4 2 1 . Max Gunslinging Chain 1 | . . 1 1 1 . Shots Hit Robots 145 | . . 28 33 40 44 Core Hits 57 | . . 13 14 15 15 Critical Kills . | . . . . . . Critical Parts Destroyed . | . . . . . . Critical Strikes 3 | . . . 3 . . Burn 3 | . . . 3 . . Melee Attacks . | . . . . . . Impact . | . . . . . . Slashing . | . . . . . . Piercing . | . . . . . . Sneak Attacks . | . . . . . . Combat Hostiles . | . . . . . . Follow-up Attacks . | . . . . . . Damage Inflicted 3322 | . . 372 595 825 1530 Guns 1590 | . . 372 595 623 . Cannons 1161 | . . . . 25 1136 Explosions 571 | . . . . 177 394 Melee . | . . . . . . Ramming . | . . . . . . Kinetic 216 | . . 216 . . . Thermal 1336 | . . . 595 623 118 Explosive 177 | . . . . 177 . Electromagnetic 1593 | . . 156 . 25 1412 Impact . | . . . . . . Slashing . | . . . . . . Piercing . | . . . . . . Highest Corruption . | . . . . . . Average Corruption . | . . . . . . Corruption Purged . | . . . . . . Corruption Blocked . | . . . . . . Overload Shots . | . . . . . . Overflow Damage . | . . . . . . Projectiles . | . . . . . . Explosions . | . . . . . . Melee . | . . . . . . Knockbacks . | . . . . . . Impact . | . . . . . . Kinetic . | . . . . . . Secondary . | . . . . . . Self-Inflicted Damage . | . . . . . . Shots . | . . . . . . Rammed . | . . . . . . Targets Rammed . | . . . . . . Kicked . | . . . . . . Crushed . | . . . . . . Highest Temperature 424 | . . 135 424 78 59 Average Temperature 104 | . . 54 196 30 15 Received Heat Transfer 876 | . . 138 198 90 450 Effects 4 | . . . 4 . . Shutdowns 2 | . . . 2 . . Energy Bleed 2 | . . . 2 . . Siege Activations . | . . . . . . Robots Corrupted 3 | . . . . . 3 Combat Hostiles 3 | . . . . . 3 Parts Fried 10 | . . 1 . . 9 Impact Corruptions . | . . . . . . Robots Melted 3 | . . . 1 2 . Combat Hostiles 3 | . . . 1 2 . Parts Melted 11 | . . . 5 6 . Heat Transferred 3036 | . . . 1517 1369 150 Parts Sabotaged . | . . . . . . Parts Stolen . | . . . . . . Parts Stripped . | . . . . . . Power Chain Reactions 2 | . . . . . 2 Missiles Intercepted . | . . . . . . Alert | -11 -10 -9 -9 -8 -8 ------- Run | Jun Mat Mat Min Mat Sto Peak Influence 473 | . 12 227 259 382 473 Initial 137 | . . 4 74 52 137 Average 195 | . 6 87 167 184 359 Maximum Alert Level 2 | . . 1 1 1 2 Low Security (%) 52 | 100 100 79 57 52 14 Level 1 34 | . . 20 42 47 38 Level 2 13 | . . . . . 46 Level 3 . | . . . . . . Level 4 . | . . . . . . Level 5 . | . . . . . . High Security . | . . . . . . Max Security . | . . . . . . Squads Dispatched 5 | . . 1 . 1 3 Investigation 4 | . . 1 . 1 2 Extermination . | . . . . . . Reinforcement 1 | . . . . . 1 Assault . | . . . . . . Garrison . | . . . . . . Intercept . | . . . . . . Searches Triggered . | . . . . . . Construction Impeded . | . . . . . . Haulers Reinforced . | . . . . . . Active Scanning Responses . | . . . . . . Cargo Convoy Interrupts . | . . . . . . Stealth | -11 -10 -9 -9 -8 -8 --------- Run | Jun Mat Mat Min Mat Sto Distress Signals 5 | . . 1 . . 4 Communications Jammed . | . . . . . . Distress Signals . | . . . . . . Times Spotted 62 | . . 11 12 17 22 Peak Tracking Total 6 | . . 6 3 4 5 Tactical Retreats 2 | . . . 1 . 1 Traps | -11 -10 -9 -9 -8 -8 ------- Run | Jun Mat Mat Min Mat Sto Traps Triggered 4 | . . 1 . 1 2 Indirectly . | . . . . . . Trap Hack Attempts . | . . . . . . Triggered . | . . . . . . Disarmed . | . . . . . . Reprogrammed . | . . . . . . Reused . | . . . . . . Traps Extracted . | . . . . . . Installed . | . . . . . . Triggered . | . . . . . . Machines | -11 -10 -9 -9 -8 -8 ---------- Run | Jun Mat Mat Min Mat Sto Machines Disabled 2 | . . . . 1 1 Max in Single Turn 1 | . . . . 1 1 Machines Repaired . | . . . . . . Machines Sabotaged . | . . . . . . Overloaded Fab Kills . | . . . . . . Hacking | -11 -10 -9 -9 -8 -8 --------- Run | Jun Mat Mat Min Mat Sto Machines Accessed 14 | . 2 2 1 2 7 Terminals 13 | . 2 2 1 2 6 Fabricators . | . . . . . . Repair Stations . | . . . . . . Recycling Units 1 | . . . . . 1 Scanalyzers . | . . . . . . Garrison Access . | . . . . . . Total Hacks 32 | . 5 3 1 4 19 Successful 22 | . 4 3 1 3 11 Failed 10 | . 1 . . 1 8 Catastrophic . | . . . . . . Database Lockouts . | . . . . . . Manual 4 | . . . . 2 2 Terminals 31 | . 5 3 1 4 18 Fabricators . | . . . . . . Repair Stations . | . . . . . . Recycling Units 1 | . . . . . 1 Scanalyzers . | . . . . . . Garrison Access . | . . . . . . Terminal Hacks 20 | . 4 3 1 2 10 Record 1 | . . . . 1 . Part Schematic 1 | . . . . . 1 Robot Analysis 2 | . 1 . . . 1 Prototype ID Bank 5 | . 1 1 . . 3 Open Door 1 | . . . . . 1 Branch Access Points 2 | . . . . 1 1 Locate Traps 1 | . . . . . 1 Dispatch Records 1 | . . 1 . . . Transport Status 1 | . . 1 . . . Investigation Status 1 | . . . 1 . . Hauler Manifests 2 | . 1 . . . 1 Zone Layout 2 | . 1 . . . 1 Fabricator Hacks . | . . . . . . Repair Station Hacks . | . . . . . . Recycling Unit Hacks 1 | . . . . . 1 Report Inventory 1 | . . . . . 1 Scanalyzer . | . . . . . . Garrison Access Hacks . | . . . . . . Unauthorized Hacks 1 | . . . . 1 . Terminals 1 | . . . . 1 . Assimilate 1 | . . . . 1 . Fabricators . | . . . . . . Repair Stations . | . . . . . . Recycling Units . | . . . . . . Scanalyzers . | . . . . . . Garrison Access . | . . . . . . Data Cores Recovered . | . . . . . . Used . | . . . . . . Hacking Detections 7 | . 1 . . 1 5 Full Trace Events 4 | . . . . 1 3 Feedback Events . | . . . . . . Feedback Blocked . | . . . . . . Robot Schematics Acquired . | . . . . . . Robots Built . | . . . . . . Authchips . | . . . . . . Time . | . . . . . . Total Robot Build Rating . | . . . . . . Part Schematics Acquired 1 | . . . . . 1 Parts Built . | . . . . . . Authchips . | . . . . . . Time . | . . . . . . Total Part Build Rating . | . . . . . . Parts Repaired . | . . . . . . Time . | . . . . . . Parts Recycled . | . . . . . . Recycled Matter . | . . . . . . Retrieved Matter . | . . . . . . Retrieved Components . | . . . . . . Parts Scanalyzed . | . . . . . . Part Schematics Acquired . | . . . . . . Parts Damaged . | . . . . . . Bothacking | -11 -10 -9 -9 -8 -8 ------------ Run | Jun Mat Mat Min Mat Sto Used RIF Installer . | . . . . . . Robots Hacked . | . . . . . . Non-combat . | . . . . . . Combat . | . . . . . . Robot Hacks Applied . | . . . . . . Relay Couplers Released . | . . . . . . Fabnet Peak Effective % . | . . . . . . Robots Rewired . | . . . . . . Allies Hacked . | . . . . . . Hacks Repelled . | . . . . . . Allies | -11 -10 -9 -9 -8 -8 -------- Run | Jun Mat Mat Min Mat Sto Total Allies . | . . . . . . Largest Group . | . . . . . . Highest-Rated Group . | . . . . . . Highest-Rated Ally . | . . . . . . Total Orders . | . . . . . . Ally Attacks . | . . . . . . Total Damage . | . . . . . . Kills . | . . . . . . Allies Corrupted . | . . . . . . Allies Melted . | . . . . . . Intel | -11 -10 -9 -9 -8 -8 ------- Run | Jun Mat Mat Min Mat Sto Robot Analysis Total 2 | . 1 . . . 1 Derelict Logs Recovered 1 | . . . 1 . . Drone Launches . | . . . . . . Drone Recoveries . | . . . . . . Exploration | -11 -10 -9 -9 -8 -8 ------------- Run | Jun Mat Mat Min Mat Sto Turns Passed 1981 | 68 149 329 485 375 575 Spaces Moved 1089 | 39 123 176 268 196 287 Core 9 | 9 . . . . . Treads 856 | . . 105 268 196 287 Legs 224 | 30 123 71 . . . Wheels . | . . . . . . Hover . | . . . . . . Flight . | . . . . . . Fastest Speed 50 | 50 120 120 145 145 145 Average Speed 140 | 119 120 142 145 145 145 Slowest Speed 160 | 150 120 160 145 145 145 Overloaded Moves . | . . . . . . Propulsion Burnouts . | . . . . . . Robots Hopped . | . . . . . . Cave-ins Triggered . | . . . . . . Exploration Rate (%) 35 | 3 32 30 62 26 57 Regions Visited 5 Branch Regions 2 Pre-discovered Areas . | . . . . . . Known Exits Taken 1 | . . . . 1 . Unknown Exits Taken 4 | 1 1 1 1 . . Scrap Searched 1 | . . . 1 . . Spaces Dug . | . . . . . . Terrain Destroyed 26 | . . . . 11 15 Melee . | . . . . . . Projectile . | . . . . . . AOE 26 | . . . . 11 15 Terrain Rammed . | . . . . . . Walls Destroyed . | . . . . . . Machines Disabled . | . . . . . . Actions | -11 -10 -9 -9 -8 -8 --------- Run | Jun Mat Mat Min Mat Sto Total 1360 | 57 124 225 314 241 399 Wait 98 | 9 . 11 21 3 54 Move 1084 | 38 122 175 267 195 287 Hop . | . . . . . . Pick Up 11 | 4 2 2 . 2 1 Fast Attach 18 | 6 . 5 . 6 1 Attach 7 | . . 2 1 . 4 Detach 2 | . . . . 1 1 Swap 11 | . . 5 . 3 3 Drop 16 | . . 7 . 7 2 Fire 113 | . . 18 25 24 46 Melee . | . . . . . . Ram . | . . . . . . Kick . | . . . . . . Crush . | . . . . . . Escape Stasis . | . . . . . . Rewire . | . . . . . . Trap . | . . . . . . Miscellaneous . | . . . . . . Route ------- -11/Junkyard -10/Materials -9/Materials -9/Mines (discovered 2 exits: *Mat x2) -8/Materials (discovered 2 exits: [*Fac] / *Sto) -8/Storage (discovered 1 exit: Rec) History --------- Turn | Location | Event 6 | -11/Junkyard | Discovered new exit (range 15) 69 | -11/Junkyard | Entered Materials 172 | -10/Materials | Discovered new exit (range 15) 218 | -10/Materials | Entered another Materials area 218 | -9/Materials | Evolved 2 slots: Propulsion x2 308 | -9/Materials | Build established: Mutant 485 | -9/Materials | Discovered new exit (range 7) 547 | -9/Materials | Entered Mines 710 | -9/Mines | Discovered new exit (range 14) 1009 | -9/Mines | Discovered new exit (range 7) 1032 | -9/Mines | Entered Materials 1032 | -8/Materials | Evolved 2 slots: Utility x2 1033 | -8/Materials | Identified exit to Storage 1307 | -8/Materials | Discovered new exit (range 10) 1407 | -8/Materials | Entered Storage 1921 | -8/Storage | Identified exit to Recycling 1982 | -8/Storage | Self-destructed Last Messages --------------- >>Manifests Retrieving manifest data... Found 4 haulers: A-02 Transporter 2x Hvy. Particle Gun 3x Adv. Beam Rifle 1x Hvy. EM Shotgun A-02 Transporter 5x Hvy. Ion Engine A-02 Transporter 5x Imp. Flight Unit A-02 Transporter 6x Com. Wheel 01936_ K-01 Serf cleans the Transfer Shaft. 01938_ K-01 Serf collects debris. 01945_ K-01 Serf cleans the Transfer Shaft. 01972_ Imp. EM Pulse Cannon destroyed. 01976_ Imp. Heat Sink fried. 01976_ G-47 Trooper destroyed. 01982_ Connecting with Door Terminal... Map ----- +----------------------------------------------------+ | | | | | | | | | | | | | | | | | | | | | | | | | | | ???????????????????????????????????????? | | ???????????????????????????????????????? | | ???????????????????????????????????????? | | ???????????????????????????????????????? | | ???????????????????????????????????????? | | ???????????????????????????????????????? | | ???????????????????????????????????????? | | ???????????????????????????????????????? | | ???????????????????????????????????????? | | ???????????????????????????????????????? | | ?????????????"####+######+#????????????? | | ?#######?????" # "??????????? | | ?# #???>?" @ %g="??????????? | | ?# """#?????"#T## s T #????????????? | | ?# """#??????#### #????????????? | | ?# """#?????????# #????????????? | | ?# ##????????# /! #????????????? | | ?# #????????# /! ##???????????? | | ??? ########### %! #???????????? | | ????#+## ?????? | | ????# ?????? | | ??###+##+#### ######??????? | | ?## # ##########+###???????????? | | ?#" """ # #????????????????????????? | | ?#T ! """=#/########?????????????????? | | ?#" %"""%# #?????????????????? | | ?## """ [[# #?????????????????? | | ?# "R !]] + #?????????????????? | | ?## """ !] # ##????????????????? | | ??# !] # #????????????????? | | ??####"T"#### !! ##????????????????? | | ???########## !! % #?????????????????? | | ???# # !! #?????????????????? | | ???# # #?????????????????? | | ???# #+###+################?????? | | ???# # ^ #?????? | | ???# + ^ % #?????? | +----------------------------------------------------+ Best States ------------- Heat Dissipation 45 Energy Generation 14 Energy Capacity 250 Matter Stores 300 Matter Capacity 300 Sight Range 16 Terrain Scan Density 10 Armor Coverage 150 Resistance: KI 20 Resistance: TH 30 Resistance: EX 20 Resistance: EM 20 Resistance: I 20 Resistance: S 20 Resistance: P 20 Evasion (%) 55 Recoil Reduction 8 Energy Filtering 30 Offensive Hacking 10 Item Schematics ----------------- Weapon Cycler | -8/Storage | Hacked Robot Schematics ------------------ None Fabricated ------------ Nothing Alien Tech Used ----------------- None Achievements -------------- None Challenges ------------ None Game ------ Seed ChipOpticalAccelerator Manual? 0 Play Time 00:24:45 Cumulative 78.1 hours Start 2023.03.04 @ 17:54:25 End 2023.07.31 @ 20:55:19 Sessions 3 Manual Loads 0 Difficulty Adventurer Special Mode None Game No. 79 Rogue 35 Adventurer 42 Explorer 2 Win Type - Total 0 Types 0/0/0/0/0/0/0/0/0 Lore% 65 Gallery% 70 Achievement% 59 Wizard Run 0 Options --------- ASCII 0 Keyboard 0 Movement Numpad Keybinds 0 Fullscreen 1 Font 18/SmallcapsGlow Map View 76x50 Tactical HUD 1 Map Filters NONE Filters NONE Steam 1 RUN: 186bbbb2-9fea-4110-9078-c9b25b6501e2